bitfinex-derivatives/quotes_BTCF0:USTF0_20250121
["timestamp","ask_amount","ask_price","bid_price","bid_amount"]
[1737469626270,0.14129069,105070.0,105060.0,0.047636]
[1737469626466,0.14129069,105070.0,105060.0,0.408436]
[1737469626667,0.14129069,105070.0,105060.0,0.495536]
[1737469627268,0.11340779,105070.0,105060.0,0.495536]
[1737469627777,0.14143338,105080.0,105070.0,0.047632]
[1737469627963,0.14143338,105080.0,105070.0,0.408432]
[1737469628167,0.16855721,105090.0,105080.0,0.047627]
[1737469628368,0.095233,105110.0,105100.0,0.047618]
[1737469628676,0.047616,105110.0,105100.0,0.047618]
[1737469629174,0.047618,105100.0,105090.0,0.408422]
[1737469629369,0.047618,105100.0,105090.0,0.40856469]
[1737469629677,0.056615,105110.0,105100.0,0.048617]
[1737469630264,0.056615,105110.0,105090.0,0.36094269]
[1737469630265,0.056618,105100.0,105090.0,0.00114269]
[1737469630469,0.056618,105100.0,105090.0,6.9e-07]
[1737469630871,0.417418,105100.0,105090.0,6.9e-07]
[1737469631175,0.056618,105100.0,105090.0,6.9e-07]
[1737469631375,0.056618,105100.0,105090.0,0.04762369]
[1737469631565,0.009,105100.0,105090.0,0.40842369]
[1737469631873,0.065616,105110.0,105100.0,0.001]
[1737469632770,0.064618,105100.0,105090.0,0.002]
[1737469633173,0.055618,105100.0,105090.0,0.001]
[1737469633472,0.047623,105090.0,105080.0,0.40856969]
[1737469634467,0.047623,105090.0,105080.0,0.36094269]
[1737469635177,0.047623,105090.0,105080.0,0.00014269]
[1737469635493,0.056623,105090.0,105080.0,0.00114269]
[1737469635871,0.056623,105090.0,105080.0,0.36194269]
[1737469636077,0.061623,105090.0,105080.0,0.36194269]
[1737469636471,0.061623,105090.0,105080.0,0.00114269]
[1737469636670,0.061623,105090.0,105080.0,0.36194269]
[1737469636971,0.422423,105090.0,105080.0,0.00114269]
[1737469637269,0.422423,105090.0,105050.0,0.58789653]
[1737469637270,0.047636,105060.0,105050.0,0.58789653]
[1737469637473,0.047636,105060.0,105050.0,0.22709653]
[1737469637865,0.408436,105060.0,105050.0,0.22709653]
[1737469638069,0.047645,105040.0,105030.0,0.58789653]
[1737469638776,0.047645,105040.0,105030.0,0.63554653]
[1737469638976,0.047645,105040.0,105030.0,0.58789653]
[1737469639178,0.047645,105040.0,105030.0,0.59689653]
[1737469639179,0.048645,105040.0,105030.0,0.59689653]
[1737469639379,0.048645,105040.0,105030.0,0.64454653]
[1737469639568,0.048645,105040.0,105030.0,0.59689653]
[1737469640271,0.047645,105040.0,105030.0,0.59289653]
[1737469640467,0.048645,105040.0,105030.0,0.24109653]
[1737469640868,0.409445,105040.0,105030.0,0.24109653]
[1737469641069,0.04765,105030.0,105020.0,0.00014269]
[1737469641272,0.047659,105010.0,105000.0,0.147664]
[1737469641469,0.047657,105020.0,105000.0,0.508464]
[1737469641872,0.047659,105010.0,105000.0,0.508464]
[1737469642281,0.047659,105010.0,105000.0,0.147664]
[1737469642470,0.048659,105010.0,105000.0,0.151664]
[1737469642995,0.001,105010.0,105000.0,0.512464]
[1737469644284,0.002,105010.0,105000.0,0.512464]
[1737469644873,0.002,105010.0,105000.0,0.508464]
[1737469645774,0.001,105010.0,105000.0,0.508464]
[1737469645977,0.002,105010.0,105000.0,0.508464]
[1737469646487,0.049659,105010.0,105000.0,0.508464]
[1737469646881,0.049659,105010.0,105000.0,0.4608]
[1737469647081,0.049659,105010.0,105000.0,0.1]
[1737469647783,0.049659,105010.0,105000.0,0.4608]
[1737469648176,0.25087065,105010.0,105000.0,0.1]
[1737469648376,0.61167065,105010.0,105000.0,0.1]
[1737469648581,0.410459,105010.0,105000.0,0.1]
[1737469651784,0.493359,105010.0,105000.0,0.1]
[1737469651987,0.793359,105010.0,104990.0,9.51e-05]
[1737469652187,0.047668,104990.0,104980.0,0.3608]
[1737469653486,0.047668,104990.0,104970.0,0.3608]
[1737469653487,0.408468,104990.0,104970.0,0.3608]
[1737469653789,0.24888465,104980.0,104970.0,0.3608]
[1737469654289,0.047669,104990.0,104980.0,0.047673]
[1737469654588,0.51238269,105000.0,104990.0,0.047668]
[1737469654780,0.51238269,105000.0,104990.0,0.408468]
[1737469655983,0.56904669,105000.0,104990.0,0.3608]
[1737469656184,0.047668,104990.0,104980.0,0.491471]
[1737469656383,0.72259434,105000.0,104990.0,0.047668]
[1737469656384,0.56904669,105000.0,104990.0,0.047668]
[1737469656793,0.56904669,105000.0,104990.0,0.408468]
[1737469658791,0.00914269,105000.0,104990.0,0.53924943]
[1737469659090,0.047655,105020.0,104990.0,0.71424643]
[1737469659292,0.047655,105020.0,105010.0,0.408458]
[1737469660191,0.049655,105020.0,105010.0,0.408458]
[1737469660887,0.049655,105020.0,105010.0,0.769258]
[1737469661088,0.002,105020.0,105010.0,0.769258]
[1737469661396,0.00968362,105050.0,105040.0,0.047645]
[1737469661397,0.0848505,105050.0,105040.0,0.047645]
[1737469661603,0.14145067,105070.0,105060.0,0.047636]
[1737469661893,0.14145067,105070.0,105060.0,0.769236]
[1737469663198,0.2812321,105070.0,105060.0,0.770236]
[1737469663690,0.15045067,105070.0,105060.0,0.770236]
[1737469663890,0.056632,105070.0,105060.0,0.001]
[1737469664381,0.056632,105070.0,105060.0,0.048636]
[1737469664587,0.056632,105070.0,105060.0,0.409436]
[1737469664791,1.563632,105070.0,105060.0,0.409436]
[1737469664994,0.016,105070.0,105060.0,0.409436]
[1737469665487,0.1,105100.0,105070.0,0.047632]
[1737469665683,0.1,105100.0,105090.0,0.60980114]
[1737469666689,0.109,105100.0,105090.0,0.60980114]
[1737469667696,0.112,105100.0,105090.0,0.60980114]
[1737469667902,0.00014269,105110.0,105090.0,0.56217814]
[1737469668086,0.00014269,105110.0,105100.0,0.408418]
[1737469668291,0.00014269,105110.0,105100.0,0.42329914]
[1737469669001,0.00814269,105110.0,105100.0,0.42329914]
[1737469669298,0.00814269,105110.0,105100.0,0.42429914]
[1737469669797,0.05575669,105110.0,105100.0,0.42529914]
[1737469670291,0.05575669,105110.0,105100.0,0.01688114]
[1737469670493,0.047618,105100.0,105090.0,0.3608]
[1737469670692,0.047618,105100.0,105090.0,0.42330692]
[1737469670994,0.05575769,105110.0,105090.0,0.42330692]
[1737469671302,0.05575669,105110.0,105100.0,0.408418]
[1737469671691,0.04775669,105110.0,105100.0,0.3608]
[1737469672397,0.04775669,105110.0,105090.0,0.408422]
[1737469672594,0.04775669,105110.0,105090.0,0.409422]
[1737469672595,0.047618,105100.0,105090.0,0.409422]
[1737469673009,0.047618,105100.0,105090.0,0.001]
[1737469673299,0.047618,105100.0,105090.0,0.3618]
[1737469674193,0.17794269,105110.0,105100.0,0.001]
[1737469674387,0.58635869,105110.0,105100.0,0.001]
[1737469674590,0.22555869,105110.0,105100.0,0.001]
[1737469674901,0.001,105100.0,105090.0,0.409422]
[1737469675397,0.007,105100.0,105090.0,0.409422]
[1737469676691,0.007,105100.0,105090.0,0.61080014]
[1737469677000,0.00114269,105110.0,105100.0,0.047618]
[1737469677001,0.00014269,105110.0,105100.0,0.047618]
[1737469677199,0.00014269,105110.0,105100.0,0.495418]
[1737469678097,0.047602,105140.0,105100.0,0.495418]
[1737469678296,0.047602,105140.0,105130.0,0.3608]
[1737469679596,0.412402,105140.0,105120.0,0.00014269]
[1737469679890,0.047605,105130.0,105120.0,0.00014269]
[1737469680195,0.20137814,105130.0,105100.0,0.3618]
[1737469680398,0.56217814,105130.0,105090.0,0.3608]
[1737469680595,0.047618,105100.0,105080.0,0.408426]
[1737469681198,0.047623,105090.0,105080.0,0.3608]
[1737469681409,0.408423,105090.0,105080.0,0.00014269]
[1737469681898,0.60980114,105090.0,105080.0,0.00014269]
[1737469682204,0.047627,105080.0,105070.0,0.3608]
[1737469683402,0.047632,105070.0,105060.0,0.00014269]
[1737469683599,0.60981014,105070.0,105060.0,0.01503225]
[1737469683902,0.60981014,105070.0,105060.0,0.00014269]
[1737469684103,0.047636,105060.0,105050.0,0.1692147]
[1737469684306,0.497036,105060.0,105040.0,0.28328136]
[1737469684500,0.60981914,105050.0,105030.0,0.34012562]
[1737469684699,0.408445,105040.0,105030.0,0.34012562]
[1737469685003,0.047652,105030.0,105020.0,0.3608]
[1737469685509,0.047652,105030.0,105020.0,0.36094269]
[1737469685696,0.24903014,105030.0,105020.0,0.00014269]
[1737469685903,0.60983014,105030.0,105020.0,0.00014269]
[1737469687500,0.69223014,105030.0,105020.0,0.00014269]
[1737469687706,0.69223014,105030.0,105020.0,0.00914269]
[1737469687906,0.69323014,105030.0,105020.0,0.01814269]
[1737469688403,0.047659,105010.0,105000.0,0.1]
[1737469688604,0.24903714,105010.0,105000.0,0.1]
[1737469688804,0.047659,105010.0,105000.0,0.1]
[1737469689102,0.69323014,105030.0,105000.0,0.1]
[1737469689410,0.047656,105020.0,105000.0,0.508461]
[1737469689602,0.491852,105030.0,105000.0,0.508461]
[1737469689603,0.047659,105010.0,105000.0,0.508461]
[1737469689803,0.048659,105010.0,105000.0,0.517461]
[1737469690016,0.001,105010.0,105000.0,0.517461]
[1737469690410,0.047659,105010.0,105000.0,0.517461]
[1737469690606,0.047659,105010.0,105000.0,0.118]
[1737469690607,0.048659,105010.0,105000.0,0.118]
[1737469690811,0.048659,105010.0,105000.0,0.4788]
[1737469691006,0.048659,105010.0,105000.0,0.4698]
[1737469691208,0.057659,105010.0,105000.0,0.4708]
[1737469691406,0.569779,105010.0,105000.0,0.11]
[1737469691606,0.930579,105010.0,105000.0,0.11]
[1737469691999,0.047668,104990.0,104980.0,0.3608]
[1737469693716,0.048668,104990.0,104980.0,0.3698]
[1737469694708,0.048668,104990.0,104980.0,0.417473]
[1737469694914,0.049668,104990.0,104980.0,0.419473]
[1737469696108,0.002,104990.0,104980.0,0.419473]
[1737469696514,0.00014269,105000.0,104990.0,0.047668]
[1737469696816,0.00014269,105000.0,104990.0,0.4233675]
[1737469697213,0.00014269,105000.0,104990.0,0.5044675]
[1737469697719,0.00014269,105000.0,104990.0,0.5064675]
[1737469697919,0.00914269,105000.0,104990.0,0.5074675]
[1737469698323,0.00014269,105000.0,104990.0,0.5064675]
[1737469698522,0.00714269,105000.0,104990.0,0.5074675]
[1737469699520,0.047647,105040.0,104990.0,0.63821952]
[1737469699716,0.047649,105040.0,105030.0,0.408449]
[1737469699913,0.047649,105040.0,105020.0,0.3608]
[1737469700121,0.04765,105030.0,105020.0,0.42334656]
[1737469700529,0.04765,105030.0,105020.0,0.42334727]
[1737469701024,0.04765,105030.0,105020.0,0.01489427]
[1737469701228,0.04765,105030.0,105010.0,0.00014269]
[1737469701428,0.047654,105020.0,105010.0,0.0150391]
[1737469702929,0.047654,105020.0,105010.0,0.3758391]
[1737469703127,0.047654,105020.0,105010.0,0.4234981]
[1737469703332,0.055654,105020.0,105010.0,0.3758391]
[1737469703534,0.055654,105020.0,105010.0,0.3768391]
[1737469703732,0.055654,105020.0,105010.0,0.0160391]
[1737469703936,0.047654,105020.0,105010.0,0.0160391]
[1737469704135,0.053654,105020.0,105010.0,0.0150391]
[1737469704434,0.062654,105020.0,105010.0,0.0160391]
[1737469705028,0.015,105020.0,105010.0,0.4244981]
[1737469705225,0.015,105020.0,105010.0,0.40960169]
[1737469705424,0.015,105020.0,105010.0,0.01603751]
[1737469705425,0.062654,105020.0,105010.0,0.01603751]
[1737469705635,0.062654,105020.0,105010.0,0.00114269]
[1737469705827,0.423454,105020.0,105010.0,0.00114269]
[1737469706030,0.425454,105020.0,105010.0,0.01603914]
[1737469706837,0.423454,105020.0,105010.0,0.01603914]
[1737469707035,0.062654,105020.0,105010.0,0.01603914]
[1737469707925,0.423454,105020.0,105010.0,0.01603914]
[1737469708130,0.062654,105020.0,105010.0,0.01603914]
[1737469708331,0.419454,105020.0,105010.0,0.01603914]
[1737469709437,0.62092499,105020.0,105010.0,0.01603914]
[1737469709837,0.61492499,105020.0,105010.0,0.01603914]
[1737469710034,0.62192499,105020.0,105010.0,0.01603914]
[1737469710235,0.26112499,105020.0,105010.0,0.01603914]
[1737469710434,0.63138893,105020.0,105010.0,0.01603914]
[1737469710834,0.27058893,105020.0,105010.0,0.01603914]
[1737469711039,0.059654,105020.0,105010.0,0.37683914]
[1737469711733,0.059654,105020.0,105010.0,0.3768392]
[1737469713051,0.059654,105020.0,105010.0,0.0160392]
[1737469714842,0.059654,105020.0,105010.0,0.3768392]
[1737469715435,0.17271415,105020.0,105010.0,0.3768392]
[1737469715642,0.12506015,105020.0,105010.0,0.42449719]
[1737469715849,0.12506015,105020.0,105010.0,0.46620102]
[1737469716148,0.12506015,105020.0,105010.0,0.51545478]
[1737469716548,0.00116015,105020.0,105010.0,0.67522194]
[1737469716848,0.1701115,105040.0,105030.0,0.04765]
[1737469717150,0.1701115,105040.0,105030.0,1.01997475]
[1737469717448,0.1701115,105040.0,105030.0,0.81850376]
[1737469717449,0.2177565,105040.0,105030.0,0.81850376]
[1737469717840,0.2177565,105040.0,105030.0,0.76925]
[1737469718150,0.2357565,105040.0,105030.0,0.81950375]
[1737469718751,0.2357565,105040.0,105030.0,0.77025]
[1737469719354,0.06578769,105040.0,105030.0,0.81955236]
[1737469719550,0.06578769,105040.0,105030.0,0.77190236]
[1737469719744,0.06578769,105040.0,105030.0,0.3618]
[1737469721349,0.26725868,105040.0,105030.0,0.001]
[1737469721553,0.78735868,105040.0,105030.0,0.001]
[1737469721754,0.71663249,105040.0,105030.0,0.001]
[1737469722554,0.84737729,105040.0,105030.0,0.001]
[1737469722849,0.04765,105030.0,105020.0,0.2254169]
[1737469723044,0.6208948,105030.0,105020.0,0.2254169]
[1737469723352,0.2600948,105030.0,105020.0,0.2254169]
[1737469723558,0.047654,105020.0,105010.0,0.36094269]
[1737469723749,0.047654,105020.0,105010.0,0.40860169]
[1737469724755,0.047654,105020.0,105010.0,0.40960169]
[1737469724949,0.056654,105020.0,105010.0,0.40960169]
[1737469725150,0.062654,105020.0,105010.0,0.41060169]
[1737469725860,0.015,105020.0,105010.0,0.41060169]
[1737469726061,0.015,105020.0,105010.0,0.54134649]
[1737469726251,0.015,105020.0,105010.0,0.5906636]
[1737469726453,0.00014269,105040.0,105030.0,0.04765]
[1737469726758,0.04778769,105040.0,105030.0,0.76925]
[1737469726956,0.2177565,105040.0,105030.0,0.76925]
[1737469727556,0.1791115,105040.0,105030.0,0.9009948]
[1737469727757,0.1791115,105040.0,105030.0,0.9785948]
[1737469728053,0.1881115,105040.0,105030.0,0.9795948]
[1737469728258,0.1881115,105040.0,105030.0,0.84885]
[1737469728460,0.2357565,105040.0,105030.0,0.84885]
[1737469728663,0.1881115,105040.0,105030.0,0.9795948]
[1737469729265,0.047638,105060.0,105030.0,1.3569948]
[1737469729458,0.24414601,105070.0,105060.0,0.047636]
[1737469729752,0.24414601,105070.0,105060.0,0.5391808]
[1737469729953,0.23480935,105080.0,105070.0,0.047632]
[1737469730151,0.23480935,105080.0,105070.0,0.5391768]
[1737469730451,0.22518232,105080.0,105070.0,0.408432]
[1737469731157,0.22518232,105080.0,105070.0,0.5401768]
[1737469731359,0.23418232,105080.0,105070.0,0.5411768]
[1737469731560,0.23418232,105080.0,105070.0,0.410432]
[1737469731860,0.28180932,105080.0,105070.0,0.410432]
[1737469732059,0.23418232,105080.0,105070.0,0.410432]
[1737469732253,0.23418232,105080.0,105070.0,0.5411768]
[1737469732756,0.53497535,105090.0,105080.0,0.047627]
[1737469732963,0.53497535,105090.0,105080.0,0.3091166]
[1737469733256,0.53497535,105090.0,105080.0,0.2583718]
[1737469733456,0.53497535,105090.0,105080.0,0.6191718]
[1737469733860,0.53497535,105090.0,105080.0,0.6201718]
[1737469734055,0.53497535,105090.0,105080.0,0.6211718]
[1737469734264,0.757775,105130.0,105110.0,0.04761]
[1737469734455,0.710166,105130.0,105120.0,0.7216]
[1737469734954,0.710166,105130.0,105120.0,0.408409]
[1737469735154,0.710166,105130.0,105120.0,0.3608]
[1737469735660,0.710166,105130.0,105120.0,0.7216]
[1737469735964,0.710166,105130.0,105120.0,0.7226]
[1737469736361,0.198006,105130.0,105120.0,0.7226]
[1737469736663,0.198006,105130.0,105120.0,0.9009538]
[1737469736664,0.1504,105130.0,105120.0,0.9009538]
[1737469736861,0.12824469,105140.0,105120.0,0.9009538]
[1737469737063,0.12824469,105140.0,105130.0,0.3608]
[1737469739753,0.12824469,105140.0,105130.0,0.3618]
[1737469739967,1.62824469,105140.0,105130.0,0.3618]
[1737469740162,1.62824469,105140.0,105130.0,0.408404]
[1737469740368,1.62824469,105140.0,105130.0,0.409404]
[1737469740669,0.12824469,105140.0,105130.0,0.3618]
[1737469740967,1.62824469,105140.0,105130.0,0.3618]
[1737469741568,0.047604,105130.0,105110.0,0.36094269]
[1737469741867,0.5391538,105120.0,105110.0,0.00014269]
[1737469742069,0.047614,105110.0,105100.0,0.3608]
[1737469742270,0.047618,105100.0,105090.0,0.5862169]
[1737469742463,0.128618,105100.0,105090.0,0.5862169]
[1737469742665,0.128618,105100.0,105090.0,0.2254169]
[1737469742666,0.2593628,105100.0,105090.0,0.2254169]
[1737469742863,0.047623,105090.0,105080.0,0.28500151]
[1737469743167,0.047623,105090.0,105070.0,0.50732777]
[1737469743168,0.047627,105080.0,105070.0,0.50732777]
[1737469743372,0.5391718,105080.0,105070.0,0.38467046]
[1737469744169,0.5391718,105080.0,105070.0,0.26187046]
[1737469744472,0.1783718,105080.0,105070.0,0.26187046]
[1737469744663,0.5391718,105080.0,105070.0,0.26187046]
[1737469744864,0.1783718,105080.0,105070.0,0.26187046]
[1737469745067,0.5391718,105080.0,105070.0,0.26187046]
[1737469745266,2.0391718,105080.0,105070.0,0.26187046]
[1737469745764,1.6783718,105080.0,105070.0,0.26187046]
[1737469745971,0.1783718,105080.0,105070.0,0.26187046]
[1737469746165,0.05694454,105080.0,105070.0,0.26187046]
[1737469746371,0.05794454,105080.0,105070.0,0.26287046]
[1737469747378,0.54948934,105080.0,105070.0,0.00114269]
[1737469747560,0.18868934,105080.0,105070.0,0.00114269]
[1737469747758,0.54948934,105080.0,105070.0,0.00114269]
[1737469748071,0.048627,105080.0,105070.0,0.00114269]
[1737469748379,0.1793718,105080.0,105070.0,0.00114269]
[1737469749467,0.1783718,105080.0,105070.0,0.00014269]
[1737469749668,0.1793718,105080.0,105070.0,0.00114269]
[1737469750059,0.1783718,105080.0,105070.0,0.00014269]
[1737469750260,0.5401718,105080.0,105070.0,0.001]
[1737469750460,0.047641,105050.0,105040.0,0.3608]
[1737469750966,0.047641,105050.0,105040.0,0.408445]
[1737469751363,0.047641,105050.0,105040.0,0.3608]
[1737469751574,0.047645,105040.0,105030.0,0.40859169]
[1737469751872,0.047645,105040.0,105030.0,0.76939169]
[1737469752462,0.047645,105040.0,105030.0,0.77905946]
[1737469752669,0.047645,105040.0,105030.0,0.76939169]
[1737469752866,0.047645,105040.0,105030.0,0.40859169]
[1737469753280,0.047645,105040.0,105030.0,0.77839169]
[1737469753662,0.047641,105050.0,105030.0,0.91813649]
[1737469753876,0.047641,105050.0,105040.0,0.408442]
[1737469754066,0.04777969,105060.0,105050.0,0.047641]
[1737469754370,0.047641,105050.0,105040.0,0.3608]
[1737469754571,0.047645,105040.0,105030.0,0.42659169]
[1737469755271,0.00014269,105060.0,105030.0,0.55733649]
[1737469755577,0.04778069,105060.0,105050.0,0.408441]
[1737469755966,0.04778069,105060.0,105050.0,0.3608]
[1737469756369,0.04778069,105060.0,105050.0,0.408441]
[1737469756777,0.04978069,105060.0,105050.0,0.9009858]
[1737469756979,0.04978069,105060.0,105050.0,0.770241]
[1737469757371,0.00214269,105060.0,105050.0,0.770241]
[1737469757574,0.00214269,105060.0,105050.0,0.9009858]
[1737469758275,0.00214269,105060.0,105050.0,0.770241]
[1737469758670,0.047634,105070.0,105060.0,0.047636]
[1737469758976,0.047634,105070.0,105060.0,0.408436]
[1737469759182,0.047634,105070.0,105060.0,0.5391808]
[1737469759572,0.047629,105080.0,105070.0,0.047629]
[1737469759774,0.047619,105100.0,105090.0,0.04762]
[1737469760081,0.047619,105100.0,105090.0,0.8999648]
[1737469760588,0.18899545,105110.0,105100.0,0.047618]
[1737469760778,0.18899545,105110.0,105100.0,0.408418]
[1737469762385,0.04775869,105110.0,105100.0,0.408418]
[1737469762973,0.00014269,105110.0,105100.0,0.5401628]
[1737469763179,0.00014269,105110.0,105100.0,0.6187628]
[1737469764389,0.559606,105130.0,105110.0,0.04761]
[1737469764594,0.559606,105130.0,105120.0,0.3608]
[1737469764886,0.559606,105130.0,105120.0,0.408409]
[1737469765287,0.559606,105130.0,105120.0,0.78408937]
[1737469765587,0.512,105130.0,105120.0,0.78508937]
[1737469765785,0.512,105130.0,105120.0,0.91583212]
[1737469766191,0.512,105130.0,105120.0,0.78508732]
[1737469766488,0.512,105130.0,105120.0,0.770209]
[1737469767781,0.04774369,105140.0,105130.0,0.047604]
[1737469767980,0.00014269,105140.0,105130.0,0.6187488]
[1737469769278,0.00014269,105140.0,105130.0,0.6197488]
[1737469770000,0.65311676,105170.0,105150.0,0.047595]
[1737469770183,0.14123676,105170.0,105160.0,0.8999358]
[1737469770982,0.047583,105180.0,105170.0,0.047586]
[1737469771295,0.04772569,105180.0,105170.0,0.408386]
[1737469772789,0.04772569,105180.0,105170.0,0.409386]
[1737469772990,0.04772569,105180.0,105170.0,0.410386]
[1737469773685,0.04772569,105180.0,105170.0,0.3628]
[1737469774285,1.54772569,105180.0,105170.0,0.3628]
[1737469774489,1.67847049,105180.0,105170.0,0.002]
[1737469774695,2.03927049,105180.0,105170.0,0.002]
[1737469775400,1.67847049,105180.0,105170.0,0.002]
[1737469775691,0.04772569,105180.0,105170.0,0.3628]
[1737469775897,0.04772569,105180.0,105170.0,0.410386]
[1737469776400,0.00014269,105180.0,105170.0,0.5411308]
[1737469776898,0.55941,105210.0,105200.0,0.047573]
[1737469777094,0.68034156,105230.0,105210.0,0.047567]
[1737469777095,0.047565,105220.0,105210.0,0.047567]
[1737469777288,0.30093676,105230.0,105210.0,0.3608]
[1737469777487,0.27099676,105230.0,105220.0,0.408364]
[1737469777788,0.29924411,105230.0,105220.0,0.047564]
[1737469778096,0.29924411,105230.0,105220.0,0.408364]
[1737469778290,0.29924411,105230.0,105220.0,0.3608]
[1737469778495,0.29924411,105230.0,105210.0,0.40850869]
[1737469778696,0.047564,105220.0,105210.0,0.36094269]
[1737469778894,0.1783088,105220.0,105210.0,0.00014269]
[1737469779494,0.1783088,105220.0,105210.0,0.36094269]
[1737469779689,0.1783088,105220.0,105210.0,0.36194269]
[1737469779898,0.047564,105220.0,105210.0,0.36194269]
[1737469780095,0.047564,105220.0,105210.0,0.40951069]
[1737469780492,0.047564,105220.0,105210.0,0.36194269]
[1737469780997,0.047564,105220.0,105210.0,0.40951069]
[1737469781498,0.29924611,105230.0,105220.0,0.047564]
[1737469781699,0.047562,105230.0,105220.0,0.408364]
[1737469782900,0.047564,105220.0,105210.0,0.36094269]
[1737469783100,0.047564,105220.0,105210.0,0.53925549]
[1737469783398,0.047561,105230.0,105220.0,0.047563]
[1737469783596,0.04769969,105240.0,105230.0,0.047559]
[1737469783797,0.04769969,105240.0,105230.0,0.408359]
[1737469784904,0.00014269,105240.0,105230.0,0.5391038]
[1737469785207,0.00014269,105240.0,105230.0,0.6211038]
[1737469785401,0.00014269,105240.0,105230.0,0.6221038]
[1737469785706,0.00014269,105240.0,105230.0,0.6231038]
[1737469786408,0.047546,105260.0,105250.0,0.047547]
[1737469786606,0.047546,105260.0,105250.0,0.769147]
[1737469787200,0.047546,105260.0,105250.0,0.7216]
[1737469788213,0.1782908,105260.0,105250.0,0.001]
[1737469788402,0.047546,105260.0,105250.0,0.3628]
[1737469790403,0.047546,105260.0,105250.0,0.002]
[1737469790596,0.1782908,105260.0,105250.0,0.002]
[1737469790797,0.5390908,105260.0,105250.0,0.002]
[1737469791210,0.408346,105260.0,105250.0,0.002]
[1737469791512,0.5390908,105260.0,105250.0,0.002]
[1737469791696,0.1782908,105260.0,105250.0,0.002]
[1737469791901,0.5390908,105260.0,105250.0,0.002]
[1737469792098,0.1782908,105260.0,105250.0,0.002]
[1737469792301,0.6180908,105260.0,105250.0,0.002]
[1737469793206,0.2572908,105260.0,105250.0,0.002]
[1737469793406,0.6180908,105260.0,105250.0,0.002]
[1737469794207,0.2572908,105260.0,105250.0,0.002]
[1737469794402,0.047546,105260.0,105250.0,0.41035]
[1737469794612,0.047546,105260.0,105250.0,0.3628]
[1737469795013,0.1782908,105260.0,105250.0,0.3628]
[1737469795308,0.1782908,105260.0,105250.0,0.002]
[1737469795809,0.5390908,105260.0,105250.0,0.002]
[1737469796016,0.1782908,105260.0,105250.0,0.002]
[1737469796311,0.5390908,105260.0,105250.0,0.002]
[1737469797018,0.1782908,105260.0,105250.0,0.002]
[1737469797315,0.047546,105260.0,105250.0,0.002]
[1737469797510,0.047546,105260.0,105250.0,0.3628]
[1737469797902,0.1782908,105260.0,105250.0,0.3628]
[1737469798103,0.5390908,105260.0,105250.0,0.002]
[1737469798315,0.1782908,105260.0,105250.0,0.002]
[1737469798506,0.047546,105260.0,105250.0,0.002]
[1737469799005,0.408346,105260.0,105250.0,0.002]
[1737469799208,0.047546,105260.0,105250.0,0.002]
[1737469800215,0.73590379,105270.0,105260.0,0.047546]
[1737469800216,0.19681799,105270.0,105260.0,0.047546]
[1737469800414,0.14052936,105280.0,105270.0,0.047541]
[1737469800620,0.14052936,105280.0,105270.0,0.408341]
[1737469801519,0.16948411,105290.0,105280.0,0.047537]
[1737469801710,0.16948411,105290.0,105280.0,0.490237]
[1737469802210,0.16948411,105290.0,105280.0,0.6209818]
[1737469802718,0.16948411,105290.0,105280.0,0.490237]
[1737469803023,0.16948411,105290.0,105280.0,0.6219818]
[1737469804223,0.07622241,105300.0,105290.0,0.047532]
[1737469804224,0.02869341,105300.0,105290.0,0.047532]
[1737469804423,0.00950075,105330.0,105290.0,0.6228768]
[1737469804717,0.3608,105350.0,105290.0,0.6228768]
[1737469804718,0.047505,105350.0,105340.0,0.047507]
[1737469804919,0.047505,105350.0,105340.0,0.769107]
[1737469805111,0.1307448,105350.0,105330.0,0.408313]
[1737469805311,0.04751,105340.0,105330.0,0.40845569]
[1737469806320,0.047507,105350.0,105340.0,0.001]
[1737469806521,0.1782518,105350.0,105340.0,0.001]
[1737469806823,0.1782518,105350.0,105330.0,0.00014269]
[1737469807017,0.1782548,105340.0,105330.0,0.00014269]
[1737469807218,0.5390548,105340.0,105330.0,0.00014269]
[1737469807520,0.1782548,105340.0,105330.0,0.00014269]
[1737469807720,0.5390548,105340.0,105310.0,0.3608]
[1737469807929,0.047532,105290.0,105280.0,0.3608]
[1737469808113,0.1782768,105290.0,105280.0,0.3608]
[1737469808316,0.1782768,105290.0,105240.0,0.1593048]
[1737469808317,0.04755,105250.0,105240.0,0.3608]
[1737469808627,0.04755,105250.0,105230.0,0.06235724]
[1737469808628,0.047555,105240.0,105230.0,0.3608]
[1737469808817,0.047559,105230.0,105220.0,0.32252584]
[1737469809017,0.1783038,105230.0,105220.0,0.32266853]
[1737469809214,0.5391038,105230.0,105220.0,0.3225676]
[1737469810226,0.047568,105210.0,105200.0,0.42219571]
[1737469810823,0.1783128,105210.0,105200.0,0.42219571]
[1737469811025,0.047568,105210.0,105200.0,0.78299571]
[1737469811231,0.1783128,105210.0,105200.0,0.78299571]
[1737469811523,0.1783128,105210.0,105200.0,0.42219571]
[1737469811726,0.5391128,105210.0,105200.0,0.42219571]
[1737469811922,0.5391128,105210.0,105200.0,0.32340171]
[1737469812127,0.047573,105200.0,105190.0,0.00014269]
[1737469812424,1.547577,105190.0,105160.0,0.39618507]
[1737469812613,0.047586,105170.0,105160.0,0.39618507]
[1737469812818,0.04758,105190.0,105170.0,0.047586]
[1737469813019,0.1307448,105180.0,105160.0,0.75631804]
[1737469813219,0.24859274,105180.0,105160.0,0.76572166]
[1737469813519,0.00014269,105180.0,105160.0,0.81345335]
[1737469813717,0.00014269,105180.0,105170.0,0.3608]
[1737469814123,0.00014269,105180.0,105170.0,0.408386]
[1737469814619,0.00114269,105180.0,105170.0,0.408386]
[1737469814821,0.04872469,105180.0,105170.0,0.3608]
[1737469815028,0.00114269,105180.0,105170.0,0.408386]
[1737469815731,0.643045,105220.0,105200.0,0.047571]
[1737469816026,0.047573,105200.0,105170.0,0.408385]
[1737469816218,0.048582,105180.0,105170.0,0.001]
[1737469816727,0.047582,105180.0,105170.0,0.005]
[1737469817124,0.408382,105180.0,105170.0,0.005]
[1737469817623,0.047586,105170.0,105160.0,0.00014269]
[1737469817823,0.047595,105160.0,105140.0,0.3608]
[1737469818029,0.047595,105150.0,105140.0,0.3608]